[Event "44th Chess Olympiad Women 2022"]
[Site "Chennai"]
[Date "2022.08.01"]
[Round "4.36"]
[White "Silva Rosas, Natalia"]
[Black "Stanford, Sheila Barth"]
[Result "0-1"]
[WhiteElo "1780"]
[BlackElo "2097"]
[Annotator "NA RC"]
[PlyCount "118"]
[EventDate "2022.??.??"]
[TimeControl "60"]

1. e4 {[%emt 0:00:08]} c5 {[%emt 0:00:15]} 2. Nf3 {[%emt 0:00:06]} e6 {[%emt 0:
00:00]} 3. d3 {[%emt 0:00:11]} Nc6 {[%emt 0:00:24]} 4. g3 {[%emt 0:00:21]} d5 {
[%emt 0:01:11]} 5. Qe2 {[%emt 0:05:12]} Nf6 {[%emt 0:03:41]} 6. Bg2 {[%emt 0:
00:00]} Be7 {[%emt 0:01:48]} 7. O-O {[%emt 0:00:18]} O-O {[%emt 0:05:31]} 8. e5
{[%emt 0:00:28]} Nd7 {[%emt 0:07:21]} 9. c4 {[%emt 0:00:32]} d4 {[%emt 0:07:22]
} 10. Nbd2 {[%emt 0:02:32]} a6 {[%emt 0:01:02]} 11. h4 {[%emt 0:05:18]} Rb8 {
[%emt 0:02:24]} 12. Re1 {[%emt 0:04:04]} Re8 {[%emt 0:23:16]} 13. Nb3 {[%emt 0:
00:00]} Nf8 {[%emt 0:18:28]} 14. h5 {[%emt 0:03:44]} Bd7 {[%emt 0:02:16]} 15.
Bf4 {[%emt 0:01:07]} b5 {[%emt 0:00:57]} 16. Nbd2 {[%emt 0:03:46]} bxc4 {
[%emt 0:02:21]} 17. Nxc4 {[%emt 0:03:49]} Nb4 {[%emt 0:00:40]} 18. a3 {[%emt 0:
00:00]} Nd5 {[%emt 0:00:55]} 19. Bc1 {[%emt 0:03:39]} Bb5 {[%emt 0:03:32]} 20.
Nfd2 {[%emt 0:00:59]} Nd7 {[%emt 0:04:33]} 21. Qg4 {[%emt 0:03:00]} Bxc4 {
[%emt 0:02:14]} 22. dxc4 {[%emt 0:00:46]} N5b6 {[%emt 0:00:51]} 23. Be4 {
[%emt 0:03:24]} Qc7 {[%emt 0:01:16]} 24. f4 {[%emt 0:00:44]} Na4 {[%emt 0:00:
00]} 25. Rb1 {[%emt 0:03:25]} Red8 {[%emt 0:03:07]} 26. h6 {[%emt 0:01:16]} g6
{[%emt 0:00:14]} 27. Bc2 {[%emt 0:00:24]} Nab6 {[%emt 0:00:29]} 28. b3 {
[%emt 0:01:56]} d3 {[%emt 0:01:55]} 29. Bd1 {[%emt 0:00:38]} Nf8 {[%emt 0:00:
00]} 30. Bb2 {[%emt 0:00:34]} a5 {[%emt 0:00:55]} 31. a4 {[%emt 0:00:30]} Nc8 {
[%emt 0:00:22]} 32. Bf3 {[%emt 0:00:27]} Na7 {[%emt 0:00:51]} 33. Be4 {[%emt 0:
00:00]} Nc6 {[%emt 0:00:10]} 34. Re3 {[%emt 0:07:13]} Nd4 {[%emt 0:00:17]} 35.
Bxd3 {[%emt 0:05:40]} Nc2 {[%emt 0:01:20]} 36. Rf3 {[%emt 0:01:47]} Nb4 {
[%emt 0:00:17]} 37. Bxg6 {[%emt 0:02:50]} fxg6 {[%emt 0:01:27]} 38. Ne4 {
[%emt 0:01:01]} Rd3 {[%emt 0:00:46]} 39. Nf6+ {[%emt 0:05:07]} Bxf6 {[%emt 0:
00:00]} 40. exf6 {[%emt 0:00:10]} Qd7 {[%emt 0:01:42]} 41. f7+ {[%emt 0:01:26]}
Kxf7 {[%emt 0:04:32]} 42. Rbf1 {[%emt 0:04:32]} Rxf3 {[%emt 0:01:42]} 43. Qxf3
{[%emt 0:00:17]} Qd3 {[%emt 0:01:21]} 44. Qg2 {[%emt 0:07:46]} Rd8 {[%emt 0:00:
00]} 45. g4 {[%emt 0:01:20]} Qe3+ {[%emt 0:00:49]} 46. Qf2 {[%emt 0:03:50]}
Qxf2+ {[%emt 0:01:33]} 47. Rxf2 {[%emt 0:00:02]} Rd1+ {[%emt 0:00:11]} 48. Rf1
{[%emt 0:01:31]} Rxf1+ {[%emt 0:01:53]} 49. Kxf1 {[%emt 0:00:01]} Nd7 {[%emt 0:
00:00]} 50. Ke2 {[%emt 0:00:33]} e5 {[%emt 0:00:40]} 51. Bc1 {[%emt 0:01:04]}
Ke6 {[%emt 0:00:35]} 52. Be3 {[%emt 0:00:36]} Nc6 {[%emt 0:01:36]} 53. Kd3 {
[%emt 0:08:15]} exf4 {[%emt 0:02:33]} 54. Bxf4 {[%emt 0:00:13]} Nde5+ {[%emt 0:
00:00]} 55. Ke4 {[%emt 0:01:47]} Nxg4 {[%emt 0:00:07]} 56. Kf3 {[%emt 0:00:31]}
Kf5 {[%emt 0:00:26]} 57. Bd6 {[%emt 0:01:24]} Nd4+ {[%emt 0:00:19]} 58. Kg3 {
[%emt 0:00:59]} Nxb3 {[%emt 0:00:03]} 59. Bf4 {[%emt 0:01:42]} Ne5 {[%emt 0:00:
00]} 0-1

[Event "44th Chess Olympiad Women 2022"]
[Site "Chennai"]
[Date "2022.08.01"]
[Round "4.36"]
[White "Silvera, Pilar"]
[Black "Rodsmoen, Maud"]
[Result "0-1"]
[WhiteElo "1436"]
[BlackElo "1975"]
[Annotator "NA RC"]
[PlyCount "60"]
[EventDate "2022.??.??"]
[TimeControl "60"]

1. e4 {[%emt 0:00:02]} c5 {[%emt 0:00:04]} 2. Nf3 {[%emt 0:00:07]} e6 {[%emt 0:
00:00]} 3. d4 {[%emt 0:00:09]} cxd4 {[%emt 0:00:05]} 4. Nxd4 {[%emt 0:00:07]}
Nc6 {[%emt 0:00:15]} 5. Nc3 {[%emt 0:00:08]} Qc7 {[%emt 0:00:05]} 6. Ndb5 {
[%emt 0:00:10]} Qb8 {[%emt 0:00:33]} 7. Be3 {[%emt 0:00:08]} a6 {[%emt 0:01:40]
} 8. Bb6 {[%emt 0:00:08]} axb5 {[%emt 0:01:13]} 9. Nxb5 {[%emt 0:00:10]} Bb4+ {
[%emt 0:01:07]} 10. c3 {[%emt 0:00:09]} Ba5 {[%emt 0:00:48]} 11. Nc7+ {[%emt 0:
00:00]} Qxc7 {[%emt 0:00:14]} 12. Bxc7 {[%emt 0:00:08]} Bxc7 {[%emt 0:00:03]}
13. Qg4 {[%emt 0:00:10]} Kf8 {[%emt 0:02:59]} 14. Bb5 {[%emt 0:00:09]} Nf6 {
[%emt 0:01:06]} 15. Qe2 {[%emt 0:00:11]} g6 {[%emt 0:03:19]} 16. a4 {[%emt 0:
00:00]} Kg7 {[%emt 0:02:43]} 17. h4 {[%emt 0:00:20]} h5 {[%emt 0:02:53]} 18. b4
{[%emt 0:02:36]} d5 {[%emt 0:10:27]} 19. O-O {[%emt 0:58:24]} Nxe4 {[%emt 0:00:
00]} 20. Qe3 {[%emt 0:00:21]} Nd6 {[%emt 0:14:11]} 21. Qc5 {[%emt 0:10:24]} Bd7
{[%emt 0:05:19]} 22. Bxc6 {[%emt 0:16:33]} bxc6 {[%emt 0:00:05]} 23. a5 {
[%emt 0:00:11]} Rhb8 {[%emt 0:04:09]} 24. Ra3 {[%emt 0:06:52]} Nc4 {[%emt 0:00:
00]} 25. Ra2 {[%emt 0:03:35]} Bd6 {[%emt 0:00:43]} 26. Qd4+ {[%emt 0:01:00]} e5
{[%emt 0:00:43]} 27. Qd3 {[%emt 0:00:02]} Bf5 {[%emt 0:01:38]} 28. Qd1 {
[%emt 0:01:15]} Ra6 {[%emt 0:00:56]} 29. Re1 {[%emt 0:00:26]} Be7 {[%emt 0:00:
00]} 30. Qf3 {[%emt 0:00:34]} Bxh4 {[%emt 0:02:08]} 0-1

[Event "44th Chess Olympiad Women 2022"]
[Site "Chennai"]
[Date "2022.08.01"]
[Round "4.37"]
[White "Barbier, Wiebke"]
[Black "Abaeva, Aiana"]
[Result "0-1"]
[WhiteElo "1970"]
[BlackElo "1595"]
[Annotator "NA RC"]
[PlyCount "106"]
[EventDate "2022.??.??"]
[TimeControl "60"]

1. e4 {[%emt 0:00:01]} e5 {[%emt 0:00:20]} 2. Nf3 {[%emt 0:00:04]} Nc6 {
[%emt 0:00:06]} 3. Bc4 {[%emt 0:00:03]} Bc5 {[%emt 0:02:36]} 4. b4 {[%emt 0:00:
00]} Bb6 {[%emt 0:05:34]} 5. a4 {[%emt 0:00:24]} a6 {[%emt 0:02:10]} 6. Nc3 {
[%emt 0:00:35]} Nf6 {[%emt 0:03:42]} 7. Nd5 {[%emt 0:02:11]} d6 {[%emt 0:25:18]
} 8. d3 {[%emt 0:08:38]} Ba7 {[%emt 0:06:28]} 9. Bg5 {[%emt 0:01:44]} Be6 {
[%emt 0:04:29]} 10. c3 {[%emt 0:01:34]} Bxd5 {[%emt 0:05:14]} 11. Bxd5 {
[%emt 0:00:33]} Bb6 {[%emt 0:07:26]} 12. a5 {[%emt 0:10:33]} Ba7 {[%emt 0:00:
00]} 13. Qa4 {[%emt 0:00:13]} Qd7 {[%emt 0:04:01]} 14. Bxf6 {[%emt 0:02:41]}
gxf6 {[%emt 0:00:05]} 15. Nh4 {[%emt 0:01:53]} Nd8 {[%emt 0:02:23]} 16. Qd1 {
[%emt 0:03:32]} c6 {[%emt 0:00:43]} 17. Bb3 {[%emt 0:00:38]} Ne6 {[%emt 0:00:
00]} 18. Qf3 {[%emt 0:02:10]} O-O-O {[%emt 0:01:05]} 19. O-O-O {[%emt 0:03:12]}
c5 {[%emt 0:01:53]} 20. bxc5 {[%emt 0:09:31]} Nxc5 {[%emt 0:01:25]} 21. Bc4 {
[%emt 0:02:52]} Qa4 {[%emt 0:02:27]} 22. Kb2 {[%emt 0:03:19]} Qxa5 {[%emt 0:00:
00]} 23. Ra1 {[%emt 0:00:34]} Na4+ {[%emt 0:02:14]} 24. Rxa4 {[%emt 0:08:47]}
Qxa4 {[%emt 0:00:06]} 25. Qxf6 {[%emt 0:01:51]} Qd7 {[%emt 0:03:58]} 26. Ra1 {
[%emt 0:04:54]} Kb8 {[%emt 0:01:12]} 27. Nf5 {[%emt 0:06:41]} Qc6 {[%emt 0:00:
00]} 28. Kc2 {[%emt 0:03:43]} Qc7 {[%emt 0:02:35]} 29. Rb1 {[%emt 0:01:22]} b5
{[%emt 0:04:17]} 30. Bd5 {[%emt 0:00:32]} Rhe8 {[%emt 0:01:35]} 31. Rb3 {
[%emt 0:04:16]} Bb6 {[%emt 0:00:29]} 32. Kb2 {[%emt 0:03:15]} Ka7 {[%emt 0:00:
00]} 33. f3 {[%emt 0:04:17]} Rd7 {[%emt 0:00:49]} 34. h4 {[%emt 0:00:51]} Rc8 {
[%emt 0:00:27]} 35. c4 {[%emt 0:02:07]} Qc5 {[%emt 0:01:09]} 36. Qg5 {[%emt 0:
00:00]} b4 {[%emt 0:00:38]} 37. Qd2 {[%emt 0:00:31]} a5 {[%emt 0:00:16]} 38.
Kc2 {[%emt 0:00:34]} Qf2 {[%emt 0:01:39]} 39. Nh6 {[%emt 0:01:38]} Qxd2+ {
[%emt 0:00:57]} 40. Kxd2 {[%emt 0:00:04]} Bc5 {[%emt 0:01:29]} 41. Rb1 {
[%emt 0:03:27]} Kb6 {[%emt 0:02:37]} 42. Ra1 {[%emt 0:01:45]} Bd4 {[%emt 0:00:
00]} 43. Ra4 {[%emt 0:00:25]} b3 {[%emt 0:00:15]} 44. Nf5 {[%emt 0:02:34]} Rb8
{[%emt 0:01:37]} 45. Kc1 {[%emt 0:00:34]} Kc5 {[%emt 0:04:38]} 46. Kb1 {
[%emt 0:05:24]} Ra7 {[%emt 0:00:18]} 47. Nh6 {[%emt 0:03:27]} Rb4 {[%emt 0:00:
00]} 48. Ra3 {[%emt 0:00:05]} a4 {[%emt 0:00:27]} 49. Nxf7 {[%emt 0:00:20]} Rb8
{[%emt 0:00:17]} 50. Ng5 {[%emt 0:02:42]} Kb4 {[%emt 0:00:11]} 51. Ra1 {
[%emt 0:00:53]} Bxa1 {[%emt 0:00:13]} 52. Kxa1 {[%emt 0:00:05]} Kc3 {[%emt 0:
00:00]} 53. c5 {[%emt 0:01:10]} Kc2 {[%emt 0:00:30]} 0-1

[Event "44th Chess Olympiad Women 2022"]
[Site "Chennai"]
[Date "2022.08.01"]
[Round "4.37"]
[White "Goossens, Hanne"]
[Black "Zairbek kyzy, Begimai"]
[Result "1-0"]
[WhiteElo "2159"]
[BlackElo "1949"]
[Annotator "NA RC"]
[PlyCount "80"]
[EventDate "2022.??.??"]
[TimeControl "60"]

1. e4 {[%emt 0:00:07]} c6 {[%emt 0:03:01]} 2. d4 {[%emt 0:00:10]} d5 {[%emt 0:
00:00]} 3. e5 {[%emt 0:00:10]} c5 {[%emt 0:00:21]} 4. dxc5 {[%emt 0:00:33]} e6
{[%emt 0:03:21]} 5. a3 {[%emt 0:00:34]} Bxc5 {[%emt 0:01:08]} 6. Nf3 {[%emt 0:
00:00]} Ne7 {[%emt 0:00:19]} 7. Bd3 {[%emt 0:02:09]} Nd7 {[%emt 0:00:31]} 8.
O-O {[%emt 0:01:58]} Qc7 {[%emt 0:00:32]} 9. Re1 {[%emt 0:03:14]} Nc6 {[%emt 0:
00:00]} 10. b4 {[%emt 0:02:10]} Be7 {[%emt 0:03:32]} 11. Bb2 {[%emt 0:01:07]}
a6 {[%emt 0:00:27]} 12. Nbd2 {[%emt 0:08:08]} b5 {[%emt 0:00:52]} 13. Nb3 {
[%emt 0:04:24]} O-O {[%emt 0:08:00]} 14. Nbd4 {[%emt 0:07:38]} Nb6 {[%emt 0:00:
00]} 15. Nxc6 {[%emt 0:08:50]} Qxc6 {[%emt 0:00:05]} 16. Nd4 {[%emt 0:00:22]}
Qc7 {[%emt 0:02:50]} 17. Qh5 {[%emt 0:07:11]} g6 {[%emt 0:01:22]} 18. Qh6 {
[%emt 0:04:54]} Re8 {[%emt 0:03:16]} 19. Nf3 {[%emt 0:01:05]} Bf8 {[%emt 0:00:
00]} 20. Qg5 {[%emt 0:01:38]} Nc4 {[%emt 0:04:57]} 21. Bd4 {[%emt 0:00:42]} a5
{[%emt 0:00:47]} 22. c3 {[%emt 0:01:13]} Ba6 {[%emt 0:01:47]} 23. h4 {[%emt 0:
00:00]} Qd8 {[%emt 0:05:38]} 24. Qf4 {[%emt 0:05:08]} Rc8 {[%emt 0:07:37]} 25.
g3 {[%emt 0:03:32]} Nb2 {[%emt 0:02:43]} 26. Bc2 {[%emt 0:01:32]} Na4 {[%emt 0:
00:00]} 27. Rac1 {[%emt 0:04:08]} Qe7 {[%emt 0:07:43]} 28. Bb1 {[%emt 0:05:02]}
Nb2 {[%emt 0:00:51]} 29. Kg2 {[%emt 0:02:39]} Nc4 {[%emt 0:00:33]} 30. h5 {
[%emt 0:01:24]} Bg7 {[%emt 0:11:11]} 31. Rh1 {[%emt 0:02:55]} Nxa3 {[%emt 0:00:
00]} 32. Bd3 {[%emt 0:03:35]} axb4 {[%emt 0:02:36]} 33. cxb4 {[%emt 0:03:45]}
Rxc1 {[%emt 0:02:31]} 34. Rxc1 {[%emt 0:00:10]} Nc4 {[%emt 0:00:20]} 35. Rh1 {
[%emt 0:01:19]} Qxb4 {[%emt 0:09:33]} 36. hxg6 {[%emt 0:02:47]} hxg6 {[%emt 0:
00:00]} 37. Qh4 {[%emt 0:05:02]} Rc8 {[%emt 0:01:29]} 38. Ng5 {[%emt 0:01:10]}
Qd2 {[%emt 0:01:58]} 39. Bxg6 {[%emt 0:02:39]} Nd6 {[%emt 0:08:48]} 40. exd6 {
[%emt 0:01:02]} Qxd4 {[%emt 0:00:10]} 1-0

[Event "44th Chess Olympiad Women 2022"]
[Site "Chennai"]
[Date "2022.08.01"]
[Round "4.37"]
[White "Samaganova, Alexandra"]
[Black "De Rycke, Tyani"]
[Result "0-1"]
[WhiteElo "1864"]
[BlackElo "1994"]
[Annotator "NA RC"]
[PlyCount "98"]
[EventDate "2022.??.??"]
[TimeControl "60"]

1. c4 {[%emt 0:00:05]} e5 {[%emt 0:00:08]} 2. e3 {[%emt 0:01:03]} Nc6 {[%emt 0:
00:00]} 3. a3 {[%emt 0:01:16]} g6 {[%emt 0:00:08]} 4. b4 {[%emt 0:01:07]} Bg7 {
[%emt 0:00:10]} 5. Bb2 {[%emt 0:00:35]} d6 {[%emt 0:00:11]} 6. Nf3 {[%emt 0:00:
00]} f5 {[%emt 0:02:39]} 7. b5 {[%emt 0:08:22]} Nce7 {[%emt 0:00:50]} 8. c5 {
[%emt 0:04:22]} Be6 {[%emt 0:14:51]} 9. cxd6 {[%emt 0:07:57]} Qxd6 {[%emt 0:00:
00]} 10. d4 {[%emt 0:06:18]} e4 {[%emt 0:04:26]} 11. Nfd2 {[%emt 0:04:47]} Nd5
{[%emt 0:05:05]} 12. a4 {[%emt 0:04:41]} Nge7 {[%emt 0:01:38]} 13. Na3 {
[%emt 0:02:56]} O-O {[%emt 0:02:22]} 14. Nac4 {[%emt 0:00:53]} Qd7 {[%emt 0:00:
00]} 15. Be2 {[%emt 0:01:36]} g5 {[%emt 0:08:25]} 16. g3 {[%emt 0:06:21]} Ng6 {
[%emt 0:07:04]} 17. Qc2 {[%emt 0:05:55]} h6 {[%emt 0:13:25]} 18. Ba3 {[%emt 0:
00:00]} Rfe8 {[%emt 0:01:33]} 19. Rc1 {[%emt 0:08:19]} b6 {[%emt 0:06:49]} 20.
Bh5 {[%emt 0:07:44]} Bf7 {[%emt 0:00:16]} 21. h4 {[%emt 0:04:08]} f4 {[%emt 0:
00:00]} 22. gxf4 {[%emt 0:05:20]} gxf4 {[%emt 0:01:02]} 23. Nf1 {[%emt 0:03:48]
} Qf5 {[%emt 0:01:49]} 24. Bd1 {[%emt 0:01:36]} Bf6 {[%emt 0:02:26]} 25. h5 {
[%emt 0:00:33]} Nh4 {[%emt 0:00:13]} 26. Rg1+ {[%emt 0:00:31]} Kh8 {[%emt 0:00:
00]} 27. Bg4 {[%emt 0:00:27]} Qg5 {[%emt 0:00:32]} 28. Ne5 {[%emt 0:00:51]}
Bxe5 {[%emt 0:01:24]} 29. dxe5 {[%emt 0:00:02]} fxe3 {[%emt 0:01:36]} 30. fxe3
{[%emt 0:01:08]} Nxe3 {[%emt 0:00:37]} 31. Qxe4 {[%emt 0:00:27]} Neg2+ {
[%emt 0:01:41]} 32. Kf2 {[%emt 0:00:35]} Bd5 {[%emt 0:03:35]} 33. Qd4 {[%emt 0:
00:00]} Rxe5 {[%emt 0:04:47]} 34. Rxc7 {[%emt 0:00:36]} Qf6+ {[%emt 0:01:02]}
35. Kg3 {[%emt 0:00:24]} Re3+ {[%emt 0:00:20]} 36. Qxe3 {[%emt 0:00:36]} Nxe3 {
[%emt 0:00:17]} 37. Nxe3 {[%emt 0:00:26]} Qe5+ {[%emt 0:00:44]} 38. Kh3 {
[%emt 0:00:34]} Qxe3+ {[%emt 0:00:20]} 39. Rg3 {[%emt 0:00:25]} Bg2+ {[%emt 0:
00:00]} 40. Kh2 {[%emt 0:00:12]} Qf2 {[%emt 0:01:21]} 41. Bd6 {[%emt 0:02:24]}
Nf3+ {[%emt 0:03:52]} 42. Bxf3 {[%emt 0:01:08]} Bxf3+ {[%emt 0:00:11]} 43. Kh3
{[%emt 0:00:08]} Qf1+ {[%emt 0:00:10]} 44. Kh4 {[%emt 0:00:27]} Qh1+ {[%emt 0:
00:00]} 45. Rh3 {[%emt 0:00:12]} Qe1+ {[%emt 0:00:07]} 46. Rg3 {[%emt 0:00:37]}
Qe4+ {[%emt 0:00:08]} 47. Kh3 {[%emt 0:00:34]} Qe6+ {[%emt 0:00:07]} 48. Kh4 {
[%emt 0:01:05]} Qxd6 {[%emt 0:00:31]} 49. Rcg7 {[%emt 0:00:31]} Qf6+ {[%emt 0:
00:00]} 0-1

[Event "44th Chess Olympiad Women 2022"]
[Site "Chennai"]
[Date "2022.08.01"]
[Round "4.37"]
[White "Sovetbekova, Nurai"]
[Black "Barbier, Astrid"]
[Result "0-1"]
[WhiteElo "1693"]
[BlackElo "1879"]
[Annotator "NA RC"]
[PlyCount "76"]
[EventDate "2022.??.??"]
[TimeControl "60"]

1. d4 {[%emt 0:00:06]} d5 {[%emt 0:00:08]} 2. c4 {[%emt 0:00:06]} e6 {[%emt 0:
00:00]} 3. Nf3 {[%emt 0:00:20]} Nf6 {[%emt 0:00:20]} 4. g3 {[%emt 0:00:16]}
dxc4 {[%emt 0:00:46]} 5. Qa4+ {[%emt 0:04:50]} Nbd7 {[%emt 0:01:05]} 6. Bg2 {
[%emt 0:01:43]} a6 {[%emt 0:04:46]} 7. Qxc4 {[%emt 0:00:47]} b5 {[%emt 0:00:29]
} 8. Qc2 {[%emt 0:06:01]} Bb7 {[%emt 0:01:56]} 9. O-O {[%emt 0:01:37]} Bd6 {
[%emt 0:04:28]} 10. a3 {[%emt 0:07:11]} O-O {[%emt 0:07:31]} 11. b4 {[%emt 0:
00:00]} Nb6 {[%emt 0:19:49]} 12. Nbd2 {[%emt 0:21:22]} a5 {[%emt 0:05:06]} 13.
bxa5 {[%emt 0:10:32]} Rxa5 {[%emt 0:01:10]} 14. e4 {[%emt 0:06:31]} Be7 {
[%emt 0:02:37]} 15. Bb2 {[%emt 0:04:17]} Na4 {[%emt 0:04:07]} 16. e5 {[%emt 0:
00:00]} Nd5 {[%emt 0:02:43]} 17. Nb3 {[%emt 0:05:22]} Ra7 {[%emt 0:02:09]} 18.
Nc5 {[%emt 0:01:12]} Nxc5 {[%emt 0:05:20]} 19. dxc5 {[%emt 0:00:08]} Qa8 {
[%emt 0:08:15]} 20. Nd4 {[%emt 0:04:33]} Bc6 {[%emt 0:00:39]} 21. Be4 {[%emt 0:
00:00]} g6 {[%emt 0:01:41]} 22. Nxc6 {[%emt 0:04:06]} Qxc6 {[%emt 0:00:17]} 23.
Rfd1 {[%emt 0:00:55]} Ra4 {[%emt 0:04:54]} 24. Rd4 {[%emt 0:02:27]} Rfa8 {
[%emt 0:00:54]} 25. Bxd5 {[%emt 0:02:43]} exd5 {[%emt 0:00:12]} 26. Qd3 {
[%emt 0:00:54]} Rxd4 {[%emt 0:02:44]} 27. Bxd4 {[%emt 0:00:13]} Ra4 {[%emt 0:
00:00]} 28. Rc1 {[%emt 0:00:50]} Qa8 {[%emt 0:04:30]} 29. Rc3 {[%emt 0:02:07]}
c6 {[%emt 0:00:22]} 30. Qe3 {[%emt 0:00:40]} Qc8 {[%emt 0:01:06]} 31. Rb3 {
[%emt 0:00:58]} Qf5 {[%emt 0:01:45]} 32. Kg2 {[%emt 0:00:29]} Bg5 {[%emt 0:00:
00]} 33. f4 {[%emt 0:01:47]} Qc2+ {[%emt 0:01:41]} 34. Kh3 {[%emt 0:00:24]}
Qf5+ {[%emt 0:07:52]} 35. Kg2 {[%emt 0:00:03]} Be7 {[%emt 0:01:23]} 36. Rc3 {
[%emt 0:01:12]} Qb1 {[%emt 0:00:29]} 37. Qd2 {[%emt 0:00:30]} Qe4+ {[%emt 0:00:
00]} 38. Kh3 {[%emt 0:00:29]} Qxd4 {[%emt 0:00:40]} 0-1

[Event "44th Chess Olympiad Women 2022"]
[Site "Chennai"]
[Date "2022.08.01"]
[Round "4.38"]
[White "Buhagiar, Melita Sunan"]
[Black "Wafa, Shahenda"]
[Result "0-1"]
[WhiteElo "1431"]
[BlackElo "2115"]
[Annotator "NA RC"]
[PlyCount "90"]
[EventDate "2022.??.??"]
[TimeControl "60"]

1. d4 {[%emt 0:00:02]} Nf6 {[%emt 0:00:09]} 2. Bf4 {[%emt 0:01:41]} g6 {
[%emt 0:00:09]} 3. Nc3 {[%emt 0:00:43]} d5 {[%emt 0:04:15]} 4. Nb5 {[%emt 0:00:
00]} Na6 {[%emt 0:01:28]} 5. e3 {[%emt 0:00:43]} c6 {[%emt 0:06:46]} 6. Nc3 {
[%emt 0:00:10]} Nc7 {[%emt 0:14:04]} 7. Be2 {[%emt 0:02:51]} Bg7 {[%emt 0:00:
00]} 8. h4 {[%emt 0:05:21]} h5 {[%emt 0:02:51]} 9. Nf3 {[%emt 0:01:58]} Ng4 {
[%emt 0:06:25]} 10. Qd2 {[%emt 0:27:12]} Bf5 {[%emt 0:06:18]} 11. b4 {[%emt 0:
00:00]} O-O {[%emt 0:06:37]} 12. O-O {[%emt 0:03:25]} Re8 {[%emt 0:16:34]} 13.
Ne5 {[%emt 0:07:40]} Nxe5 {[%emt 0:00:11]} 14. Bxe5 {[%emt 0:00:19]} f6 {
[%emt 0:03:14]} 15. Bg3 {[%emt 0:02:23]} e5 {[%emt 0:00:19]} 16. Na4 {[%emt 0:
00:00]} b6 {[%emt 0:03:39]} 17. Rac1 {[%emt 0:01:43]} Ne6 {[%emt 0:00:48]} 18.
Rfe1 {[%emt 0:02:04]} a5 {[%emt 0:01:30]} 19. dxe5 {[%emt 0:04:36]} fxe5 {
[%emt 0:00:18]} 20. c4 {[%emt 0:00:56]} d4 {[%emt 0:01:46]} 21. Rcd1 {[%emt 0:
00:00]} axb4 {[%emt 0:00:48]} 22. Qxb4 {[%emt 0:00:46]} Bc2 {[%emt 0:00:33]}
23. Nxb6 {[%emt 0:01:57]} Bxd1 {[%emt 0:00:24]} 24. Rxd1 {[%emt 0:01:13]} Rxa2
{[%emt 0:05:16]} 25. Bf3 {[%emt 0:00:45]} Ra6 {[%emt 0:03:06]} 26. Na4 {
[%emt 0:01:19]} Qb8 {[%emt 0:01:36]} 27. Qd2 {[%emt 0:02:12]} Rxa4 {[%emt 0:00:
00]} 28. Bxc6 {[%emt 0:00:12]} Rxc4 {[%emt 0:02:06]} 29. Bxe8 {[%emt 0:00:11]}
Qxe8 {[%emt 0:00:06]} 30. Qe2 {[%emt 0:02:01]} Rc6 {[%emt 0:02:09]} 31. exd4 {
[%emt 0:01:05]} exd4 {[%emt 0:00:12]} 32. Qe4 {[%emt 0:00:33]} Kh7 {[%emt 0:00:
00]} 33. f4 {[%emt 0:00:49]} Nc7 {[%emt 0:00:42]} 34. Qf3 {[%emt 0:01:00]} Qe3+
{[%emt 0:01:01]} 35. Qxe3 {[%emt 0:00:07]} dxe3 {[%emt 0:00:05]} 36. Re1 {
[%emt 0:00:24]} Bd4 {[%emt 0:01:21]} 37. Kf1 {[%emt 0:00:20]} Rc2 {[%emt 0:00:
00]} 38. Re2 {[%emt 0:00:36]} Rc4 {[%emt 0:00:59]} 39. Be1 {[%emt 0:00:46]} Rc1
{[%emt 0:00:35]} 40. g3 {[%emt 0:00:21]} Bc3 {[%emt 0:01:41]} 41. Rxe3 {
[%emt 0:30:31]} Rxe1+ {[%emt 0:30:05]} 42. Rxe1 {[%emt 0:00:20]} Bxe1 {[%emt 0:
00:00]} 43. Kxe1 {[%emt 0:00:06]} Kg7 {[%emt 0:00:11]} 44. Kf2 {[%emt 0:00:32]}
Kf6 {[%emt 0:00:07]} 45. Kf3 {[%emt 0:00:16]} Kf5 {[%emt 0:00:14]} 0-1

[Event "44th Chess Olympiad Women 2022"]
[Site "Chennai"]
[Date "2022.08.01"]
[Round "4.38"]
[White "Khantree, Napat"]
[Black "Mona, Khaled"]
[Result "0-1"]
[WhiteElo "1362"]
[BlackElo "2127"]
[Annotator "NA RC"]
[PlyCount "68"]
[EventDate "2022.??.??"]
[TimeControl "60"]

1. d4 {[%emt 0:00:03]} d5 {[%emt 0:00:22]} 2. c4 {[%emt 0:00:13]} e6 {[%emt 0:
00:00]} 3. Nc3 {[%emt 0:00:06]} Nf6 {[%emt 0:00:42]} 4. Bg5 {[%emt 0:00:15]}
Be7 {[%emt 0:00:09]} 5. e3 {[%emt 0:00:11]} O-O {[%emt 0:00:39]} 6. Nf3 {
[%emt 0:00:17]} b6 {[%emt 0:00:17]} 7. cxd5 {[%emt 0:00:13]} exd5 {[%emt 0:00:
00]} 8. Bd3 {[%emt 0:00:39]} h6 {[%emt 0:00:24]} 9. Bh4 {[%emt 0:00:27]} Bb7 {
[%emt 0:00:19]} 10. O-O {[%emt 0:00:20]} Nbd7 {[%emt 0:00:34]} 11. Qc2 {
[%emt 0:01:00]} c5 {[%emt 0:01:39]} 12. dxc5 {[%emt 0:10:10]} Nxc5 {[%emt 0:00:
00]} 13. Rfd1 {[%emt 0:01:27]} Rc8 {[%emt 0:12:23]} 14. Bf5 {[%emt 0:01:53]}
Ne6 {[%emt 0:00:57]} 15. Nd4 {[%emt 0:04:21]} Nxd4 {[%emt 0:02:57]} 16. Rxd4 {
[%emt 0:00:10]} Rc4 {[%emt 0:01:45]} 17. Rad1 {[%emt 0:03:19]} Qa8 {[%emt 0:00:
00]} 18. Qd3 {[%emt 0:21:57]} Kh8 {[%emt 0:12:34]} 19. b3 {[%emt 0:29:45]} Rxd4
{[%emt 0:03:29]} 20. Qxd4 {[%emt 0:00:34]} Ng8 {[%emt 0:00:58]} 21. Ne2 {
[%emt 0:05:19]} Bxh4 {[%emt 0:02:38]} 22. Qxh4 {[%emt 0:00:05]} d4 {[%emt 0:00:
00]} 23. Rxd4 {[%emt 0:00:22]} Bxg2 {[%emt 0:01:21]} 24. Ng3 {[%emt 0:00:13]}
Bf3 {[%emt 0:01:43]} 25. Ne4 {[%emt 0:03:57]} Qc6 {[%emt 0:01:32]} 26. Nd2 {
[%emt 0:01:14]} Qc1+ {[%emt 0:02:39]} 27. Nf1 {[%emt 0:00:06]} Be2 {[%emt 0:00:
00]} 28. Bh3 {[%emt 0:00:17]} Rc8 {[%emt 0:00:38]} 29. Qf4 {[%emt 0:02:20]} Rc6
{[%emt 0:03:06]} 30. Qxf7 {[%emt 0:00:21]} Qb1 {[%emt 0:08:15]} 31. f4 {
[%emt 0:01:12]} Rc1 {[%emt 0:05:48]} 32. Kf2 {[%emt 0:01:17]} Bxf1 {[%emt 0:00:
00]} 33. Rd8 {[%emt 0:00:46]} Rc2+ {[%emt 0:01:24]} 34. Kf3 {[%emt 0:00:39]}
Be2+ {[%emt 0:00:25]} 0-1